[Event "Late-Titled-Tuesday-Blitz-January-16-2024"]
[Site "Chess.com"]
[Date "2024.01.16"]
[Round "4"]
[White "cassoulet"]
[Black "BogdanDeac"]
[Result "1/2-1/2"]
[WhiteElo "2776"]
[BlackElo "3026"]
[TimeControl "180+1"]
[EndTime "14:38:00 PST"]
[Termination "Game drawn by repetition"]

1. d4 {[%clk 0:03:00.9]} 1... Nf6 {[%clk 0:02:59.7]} 2. Bg5 {[%clk 0:03:00.6]}
2... d5 {[%clk 0:02:59.6]} 3. Bxf6 {[%clk 0:02:59]} 3... gxf6 {[%clk 0:02:59.2]}
4. Nf3 {[%clk 0:02:59.9]} 4... c5 {[%clk 0:02:38.9]} 5. e3 {[%clk 0:02:59.4]}
5... cxd4 {[%clk 0:02:35.1]} 6. exd4 {[%clk 0:02:59.1]} 6... Nc6 {[%clk
0:02:33.9]} 7. c3 {[%clk 0:02:57.2]} 7... e5 {[%clk 0:02:28.9]} 8. dxe5 {[%clk
0:02:52]} 8... fxe5 {[%clk 0:02:27.4]} 9. Bb5 {[%clk 0:02:51.1]} 9... Bg7 {[%clk
0:02:27]} 10. O-O {[%clk 0:02:42.2]} 10... O-O {[%clk 0:02:26]} 11. Nbd2 {[%clk
0:02:35.8]} 11... a6 {[%clk 0:02:12.1]} 12. Bxc6 {[%clk 0:02:31.6]} 12... bxc6
{[%clk 0:02:12.1]} 13. Re1 {[%clk 0:02:29.6]} 13... Re8 {[%clk 0:02:08.1]} 14.
Qa4 {[%clk 0:02:26.5]} 14... Qb6 {[%clk 0:02:02.7]} 15. Nb3 {[%clk 0:02:23.6]}
15... Bf5 {[%clk 0:01:57.2]} 16. Qa5 {[%clk 0:01:58.4]} 16... Rab8 {[%clk
0:01:29.2]} 17. Qa4 {[%clk 0:01:48.6]} 17... c5 {[%clk 0:01:19.4]} 18. Rad1
{[%clk 0:01:18.8]} 18... e4 {[%clk 0:00:24.2]} 19. Rxd5 {[%clk 0:01:02.2]} 19...
Be6 {[%clk 0:00:22.8]} 20. Rxe4 {[%clk 0:01:01.8]} 20... c4 {[%clk 0:00:19.4]}
21. Nc5 {[%clk 0:00:49.8]} 21... Qxb2 {[%clk 0:00:11]} 22. Nxe6 {[%clk
0:00:44.1]} 22... Rxe6 {[%clk 0:00:06.9]} 23. Rxe6 {[%clk 0:00:41.6]} 23... fxe6
{[%clk 0:00:07.4]} 24. Rd1 {[%clk 0:00:38.5]} 24... Qxc3 {[%clk 0:00:07.6]} 25.
Qxa6 {[%clk 0:00:38.2]} 25... Qc2 {[%clk 0:00:07.2]} 26. Qxe6+ {[%clk
0:00:38.1]} 26... Kh8 {[%clk 0:00:07.1]} 27. Re1 {[%clk 0:00:37.2]} 27... h6
{[%clk 0:00:07.3]} 28. Ne5 {[%clk 0:00:34.9]} 28... c3 {[%clk 0:00:06.2]} 29. g4
{[%clk 0:00:27.7]} 29... Kh7 {[%clk 0:00:04.7]} 30. h4 {[%clk 0:00:22]} 30...
Rb2 {[%clk 0:00:04.2]} 31. Qf7 {[%clk 0:00:19]} 31... Qd2 {[%clk 0:00:03.2]} 32.
Qg6+ {[%clk 0:00:16.7]} 32... Kg8 {[%clk 0:00:03.2]} 33. Qe6+ {[%clk 0:00:16.2]}
33... Kh7 {[%clk 0:00:03.7]} 34. Qf5+ {[%clk 0:00:16.5]} 34... Kg8 {[%clk
0:00:04.1]} 35. Rf1 {[%clk 0:00:14]} 35... c2 {[%clk 0:00:04]} 36. Qe6+ {[%clk
0:00:11.7]} 36... Kh7 {[%clk 0:00:03.6]} 37. Qf5+ {[%clk 0:00:10.2]} 37... Kg8
{[%clk 0:00:04.2]} 38. Qf7+ {[%clk 0:00:08.8]} 38... Kh7 {[%clk 0:00:04.4]} 39.
Qg6+ {[%clk 0:00:07.2]} 39... Kg8 {[%clk 0:00:04.2]} 40. Qf7+ {[%clk 0:00:07.5]}
40... Kh7 {[%clk 0:00:04.5]} 41. Qf5+ {[%clk 0:00:08]} 41... Kg8 {[%clk
0:00:04.8]} 1/2-1/2

[Event "Late-Titled-Tuesday-Blitz-January-16-2024"]
[Site "Chess.com"]
[Date "2024.01.16"]
[Round "4"]
[White "Jarming"]
[Black "TimGrutter03"]
[Result "0-1"]
[WhiteElo "2697"]
[BlackElo "2555"]
[TimeControl "180+1"]
[EndTime "14:38:01 PST"]
[Termination "TimGrutter03 won by resignation"]

1. d4 {[%clk 0:03:00.9]} 1... Nf6 {[%clk 0:02:59.2]} 2. c4 {[%clk 0:03:00.4]}
2... e6 {[%clk 0:02:59.3]} 3. Nf3 {[%clk 0:03:00.4]} 3... a6 {[%clk 0:02:57.4]}
4. g3 {[%clk 0:03:01.3]} 4... b5 {[%clk 0:02:56.7]} 5. Bg2 {[%clk 0:02:58.9]}
5... Bb7 {[%clk 0:02:56.5]} 6. O-O {[%clk 0:02:59]} 6... bxc4 {[%clk 0:02:54]}
7. Qa4 {[%clk 0:02:57.8]} 7... Be7 {[%clk 0:02:51.6]} 8. Nc3 {[%clk 0:02:56]}
8... O-O {[%clk 0:02:48.6]} 9. Qxc4 {[%clk 0:02:55.5]} 9... Nc6 {[%clk
0:02:40.4]} 10. Bf4 {[%clk 0:02:53.3]} 10... d5 {[%clk 0:02:34.8]} 11. Qb3
{[%clk 0:02:48.5]} 11... Na5 {[%clk 0:02:31.3]} 12. Qa4 {[%clk 0:02:41.9]} 12...
Nc4 {[%clk 0:02:31.4]} 13. b3 {[%clk 0:02:35.1]} 13... Nb6 {[%clk 0:02:30.7]}
14. Qa5 {[%clk 0:02:35.5]} 14... Rc8 {[%clk 0:02:25.1]} 15. Rac1 {[%clk
0:02:25.8]} 15... c5 {[%clk 0:02:23]} 16. Na4 {[%clk 0:02:22.7]} 16... Nxa4
{[%clk 0:02:19.4]} 17. Qxa4 {[%clk 0:02:23.6]} 17... Qb6 {[%clk 0:02:13.2]} 18.
Be3 {[%clk 0:02:18]} 18... Ne4 {[%clk 0:01:54.3]} 19. Ne5 {[%clk 0:02:12.6]}
19... Nf6 {[%clk 0:01:37.7]} 20. dxc5 {[%clk 0:02:04.2]} 20... Bxc5 {[%clk
0:01:37.5]} 21. Rxc5 {[%clk 0:02:04.2]} 21... Rxc5 {[%clk 0:01:37.5]} 22. Qa3
{[%clk 0:01:55.6]} 22... d4 {[%clk 0:01:13]} 23. Bxd4 {[%clk 0:01:52.4]} 23...
Bxg2 {[%clk 0:01:10.8]} 24. Bxc5 {[%clk 0:01:52.2]} 24... Qb7 {[%clk 0:01:09.1]}
25. Rd1 {[%clk 0:01:46.3]} 25... Rc8 {[%clk 0:00:55.6]} 26. Nc4 {[%clk
0:01:45.5]} 26... Bh3 {[%clk 0:00:31.8]} 27. f3 {[%clk 0:01:44.3]} 27... h6
{[%clk 0:00:18.3]} 28. Nd6 {[%clk 0:01:40]} 28... Qd7 {[%clk 0:00:18.1]} 29. Qc1
{[%clk 0:01:33.1]} 29... Rc6 {[%clk 0:00:11.6]} 30. g4 {[%clk 0:01:32.7]} 30...
h5 {[%clk 0:00:06.4]} 31. gxh5 {[%clk 0:01:27.9]} 31... Nd5 {[%clk 0:00:05.3]}
32. e4 {[%clk 0:01:21.1]} 32... Nf4 {[%clk 0:00:02.2]} 33. Qxf4 {[%clk
0:01:19.9]} 33... Rxc5 {[%clk 0:00:02.6]} 34. h6 {[%clk 0:01:18.1]} 34... gxh6
{[%clk 0:00:02.5]} 35. Kf2 {[%clk 0:01:13.5]} 35... Rg5 {[%clk 0:00:01.4]} 36.
Rg1 {[%clk 0:01:08.3]} 36... Qa7+ {[%clk 0:00:01.7]} 37. Qe3 {[%clk 0:01:05.7]}
37... Qxe3+ {[%clk 0:00:01.8]} 38. Kxe3 {[%clk 0:01:06.6]} 38... Rxg1 {[%clk
0:00:02.3]} 39. Nc4 {[%clk 0:01:04.1]} 39... Rg2 {[%clk 0:00:02.8]} 40. a4
{[%clk 0:01:03.9]} 40... Rxh2 {[%clk 0:00:03.1]} 41. b4 {[%clk 0:01:04.2]} 41...
Ra2 {[%clk 0:00:03.2]} 42. b5 {[%clk 0:01:03.1]} 42... Rxa4 {[%clk 0:00:03.2]}
43. Nd6 {[%clk 0:01:00.4]} 43... axb5 {[%clk 0:00:02.8]} 44. Nxb5 {[%clk
0:01:01.3]} 44... Rb4 {[%clk 0:00:02.9]} 45. Nd6 {[%clk 0:00:58.9]} 45... Rb3+
{[%clk 0:00:03]} 46. Kf4 {[%clk 0:00:59.2]} 46... Bg2 {[%clk 0:00:03.3]} 47. Ne8
{[%clk 0:00:58.8]} 47... Rxf3+ {[%clk 0:00:03.1]} 48. Ke5 {[%clk 0:00:59.7]}
48... h5 {[%clk 0:00:03]} 49. Nf6+ {[%clk 0:00:57]} 49... Rxf6 {[%clk
0:00:02.7]} 50. Kxf6 {[%clk 0:00:57.9]} 50... Bxe4 {[%clk 0:00:03]} 51. Kg5
{[%clk 0:00:57.8]} 51... Bg6 {[%clk 0:00:03.7]} 52. Kh4 {[%clk 0:00:58.1]} 52...
Kf8 {[%clk 0:00:04.1]} 53. Kg3 {[%clk 0:00:59]} 53... Ke7 {[%clk 0:00:04.6]} 54.
Kf4 {[%clk 0:00:59.9]} 54... Kf6 {[%clk 0:00:05.4]} 55. Ke3 {[%clk 0:00:59.7]}
55... e5 {[%clk 0:00:06.3]} 56. Kf3 {[%clk 0:00:59]} 56... Kf5 {[%clk
0:00:06.8]} 57. Ke3 {[%clk 0:00:59.9]} 57... h4 {[%clk 0:00:07]} 58. Kf3 {[%clk
0:01:00.8]} 58... Bh5+ {[%clk 0:00:07.5]} 59. Kg2 {[%clk 0:01:01.6]} 59... Kg4
{[%clk 0:00:07.7]} 60. Kh2 {[%clk 0:01:01.9]} 60... f5 {[%clk 0:00:08.3]} 61.
Kg1 {[%clk 0:01:02.7]} 61... f4 {[%clk 0:00:08.8]} 62. Kf2 {[%clk 0:01:03.6]}
62... e4 {[%clk 0:00:09.2]} 63. Ke2 {[%clk 0:01:04.4]} 63... Kg3+ {[%clk
0:00:09.5]} 64. Kf1 {[%clk 0:01:04.6]} 64... f3 {[%clk 0:00:09.8]} 65. Kg1
{[%clk 0:01:05.5]} 65... e3 {[%clk 0:00:10.2]} 66. Kh1 {[%clk 0:01:06.4]} 66...
h3 {[%clk 0:00:10.4]} 67. Kg1 {[%clk 0:01:07.3]} 67... e2 {[%clk 0:00:10.6]} 0-1

[Event "Late-Titled-Tuesday-Blitz-January-16-2024"]
[Site "Chess.com"]
[Date "2024.01.16"]
[Round "4"]
[White "SergioMoralesG"]
[Black "nikitadovbnya2008"]
[Result "1-0"]
[WhiteElo "2471"]
[BlackElo "2216"]
[TimeControl "180+1"]
[EndTime "14:38:02 PST"]
[Termination "SergioMoralesG won by checkmate"]

1. d4 {[%clk 0:03:00.9]} 1... Nf6 {[%clk 0:02:47.9]} 2. c4 {[%clk 0:02:59.9]}
2... e6 {[%clk 0:02:48]} 3. Nf3 {[%clk 0:03:00.5]} 3... b6 {[%clk 0:02:44.5]} 4.
g3 {[%clk 0:02:59.4]} 4... Bb7 {[%clk 0:02:44.7]} 5. Bg2 {[%clk 0:02:59.7]} 5...
c5 {[%clk 0:02:45]} 6. O-O {[%clk 0:02:53.4]} 6... Be7 {[%clk 0:02:44.2]} 7. Re1
{[%clk 0:02:51.5]} 7... O-O {[%clk 0:02:41.7]} 8. d5 {[%clk 0:02:48.6]} 8...
exd5 {[%clk 0:02:41.3]} 9. Nh4 {[%clk 0:02:49]} 9... g6 {[%clk 0:02:35.2]} 10.
cxd5 {[%clk 0:02:46.7]} 10... d6 {[%clk 0:02:35]} 11. Nc3 {[%clk 0:02:46.5]}
11... Nbd7 {[%clk 0:02:34.8]} 12. e4 {[%clk 0:02:45]} 12... a6 {[%clk 0:02:34]}
13. a4 {[%clk 0:02:44.4]} 13... Re8 {[%clk 0:02:34.3]} 14. Nf3 {[%clk
0:02:43.3]} 14... Bf8 {[%clk 0:02:34.5]} 15. Nd2 {[%clk 0:02:38.5]} 15... Ne5
{[%clk 0:02:31.7]} 16. Qc2 {[%clk 0:02:37.1]} 16... c4 {[%clk 0:02:30.8]} 17.
Rf1 {[%clk 0:02:12.8]} 17... Rc8 {[%clk 0:02:14.4]} 18. b3 {[%clk 0:02:12]}
18... cxb3 {[%clk 0:02:12.9]} 19. Qxb3 {[%clk 0:02:12.9]} 19... Nd3 {[%clk
0:02:05.7]} 20. Ba3 {[%clk 0:02:08.6]} 20... Qc7 {[%clk 0:01:49]} 21. Ne2 {[%clk
0:02:08.3]} 21... Nc5 {[%clk 0:01:46.6]} 22. Bxc5 {[%clk 0:02:07.6]} 22... bxc5
{[%clk 0:01:45.6]} 23. Nc4 {[%clk 0:02:05.8]} 23... Nd7 {[%clk 0:01:42.5]} 24.
f4 {[%clk 0:01:55.7]} 24... Bg7 {[%clk 0:01:42.7]} 25. Rab1 {[%clk 0:01:51.6]}
25... Rb8 {[%clk 0:01:42.7]} 26. Qc2 {[%clk 0:01:46.6]} 26... a5 {[%clk
0:01:38.5]} 27. Rfd1 {[%clk 0:01:33.8]} 27... Ba6 {[%clk 0:01:36.3]} 28. Kh1
{[%clk 0:01:18.7]} 28... Rb4 {[%clk 0:01:34.4]} 29. Ne3 {[%clk 0:01:09.2]} 29...
Bxe2 {[%clk 0:01:31.4]} 30. Qxe2 {[%clk 0:01:08.6]} 30... Rxa4 {[%clk
0:01:25.2]} 31. e5 {[%clk 0:01:07.8]} 31... Rb4 {[%clk 0:00:59.4]} 32. e6 {[%clk
0:01:05.4]} 32... Nb6 {[%clk 0:00:55.8]} 33. f5 {[%clk 0:00:58.1]} 33... Bd4
{[%clk 0:00:43.2]} 34. Ng4 {[%clk 0:00:54.2]} 34... gxf5 {[%clk 0:00:28.9]} 35.
Nh6+ {[%clk 0:00:42.5]} 35... Kg7 {[%clk 0:00:26.8]} 36. Nxf5+ {[%clk
0:00:42.1]} 36... Kh8 {[%clk 0:00:16.3]} 37. Rxb4 {[%clk 0:00:30]} 37... axb4
{[%clk 0:00:16.1]} 38. Qh5 {[%clk 0:00:20.1]} 38... Rf8 {[%clk 0:00:10.5]} 39.
e7 {[%clk 0:00:18.7]} 39... Rg8 {[%clk 0:00:09.9]} 40. Qxf7 {[%clk 0:00:16.9]}
40... Qd7 {[%clk 0:00:10.6]} 41. Rxd4 {[%clk 0:00:16]} 41... Nxd5 {[%clk
0:00:05.3]} 42. Bxd5 {[%clk 0:00:14.1]} 42... Qc8 {[%clk 0:00:04]} 43. Qf6+
{[%clk 0:00:13.2]} 43... Rg7 {[%clk 0:00:04.6]} 44. Qxg7# {[%clk 0:00:14]} 1-0

[Event "Late-Titled-Tuesday-Blitz-January-16-2024"]
[Site "Chess.com"]
[Date "2024.01.16"]
[Round "4"]
[White "Beca95"]
[Black "TheCount"]
[Result "1-0"]
[WhiteElo "2957"]
[BlackElo "2616"]
[TimeControl "180+1"]
[EndTime "14:38:04 PST"]
[Termination "Beca95 won on time"]

1. d4 {[%clk 0:03:00.9]} 1... Nf6 {[%clk 0:02:57.6]} 2. c4 {[%clk 0:02:59.9]}
2... g6 {[%clk 0:02:37.2]} 3. Nc3 {[%clk 0:02:59]} 3... d5 {[%clk 0:02:37.4]} 4.
Nf3 {[%clk 0:02:58.9]} 4... Bg7 {[%clk 0:02:37.2]} 5. h4 {[%clk 0:02:59.7]} 5...
dxc4 {[%clk 0:02:35.2]} 6. e4 {[%clk 0:02:59.4]} 6... O-O {[%clk 0:02:34.8]} 7.
Bxc4 {[%clk 0:02:53.2]} 7... c5 {[%clk 0:02:35.3]} 8. d5 {[%clk 0:02:42.5]} 8...
b5 {[%clk 0:02:35.8]} 9. Bxb5 {[%clk 0:02:42.9]} 9... Nxe4 {[%clk 0:02:35.1]}
10. Nxe4 {[%clk 0:02:43.8]} 10... Qa5+ {[%clk 0:02:35.3]} 11. Nc3 {[%clk
0:02:44.3]} 11... Bxc3+ {[%clk 0:02:35.7]} 12. bxc3 {[%clk 0:02:45.1]} 12...
Qxb5 {[%clk 0:02:36.4]} 13. h5 {[%clk 0:02:45.4]} 13... Qc4 {[%clk 0:02:37]} 14.
Rh4 {[%clk 0:02:41.8]} 14... Qxc3+ {[%clk 0:02:33.4]} 15. Bd2 {[%clk 0:02:41.6]}
15... Qd3 {[%clk 0:02:32]} 16. hxg6 {[%clk 0:02:35.7]} 16... fxg6 {[%clk
0:01:53.5]} 17. Bg5 {[%clk 0:02:25.4]} 17... Qxd1+ {[%clk 0:01:48]} 18. Rxd1
{[%clk 0:02:26.3]} 18... Nd7 {[%clk 0:01:26.9]} 19. Bxe7 {[%clk 0:02:11.1]}
19... Rf5 {[%clk 0:01:26.5]} 20. Ng5 {[%clk 0:01:37.6]} 20... Bb7 {[%clk
0:00:24]} 21. f4 {[%clk 0:01:14]} 21... h5 {[%clk 0:00:10.3]} 22. d6 {[%clk
0:01:04.3]} 22... Bxg2 {[%clk 0:00:09.1]} 23. Kf2 {[%clk 0:01:03.5]} 23... Bc6
{[%clk 0:00:07.6]} 24. Rg1 {[%clk 0:01:03.5]} 24... Bd5 {[%clk 0:00:02.5]} 25.
Nf3 {[%clk 0:00:35.2]} 25... Bxf3 {[%clk 0:00:02.1]} 26. Kxf3 {[%clk 0:00:32]}
26... Kf7 {[%clk 0:00:02.7]} 27. Rb1 {[%clk 0:00:24.5]} 27... Rb8 {[%clk
0:00:02.7]} 28. Rhh1 {[%clk 0:00:20.9]} 28... c4 {[%clk 0:00:02.8]} 29. Rxb8
{[%clk 0:00:19.4]} 29... Nxb8 {[%clk 0:00:03.7]} 30. Rd1 {[%clk 0:00:17.8]}
30... Nd7 {[%clk 0:00:03.7]} 31. Rb1 {[%clk 0:00:13.4]} 31... c3 {[%clk
0:00:03.8]} 32. Ke3 {[%clk 0:00:12.7]} 32... c2 {[%clk 0:00:03.9]} 33. Rc1
{[%clk 0:00:12.4]} 33... Rc5 {[%clk 0:00:04.5]} 34. Kd4 {[%clk 0:00:11.8]} 34...
Ke6 {[%clk 0:00:03.6]} 35. Kd3 {[%clk 0:00:11.2]} 35... Kf5 {[%clk 0:00:03.5]}
36. Bg5 {[%clk 0:00:10.5]} 36... Kg4 {[%clk 0:00:03]} 37. Kd4 {[%clk 0:00:10.4]}
37... Kf5 {[%clk 0:00:02.9]} 38. Kd3 {[%clk 0:00:10.8]} 38... Nf8 {[%clk
0:00:02.7]} 39. Kd4 {[%clk 0:00:10.3]} 39... Ne6+ {[%clk 0:00:03.1]} 40. Kd3
{[%clk 0:00:10.7]} 40... Rd5+ {[%clk 0:00:03.7]} 41. Ke3 {[%clk 0:00:09.9]}
41... Nd4 {[%clk 0:00:03]} 42. Be7 {[%clk 0:00:08.5]} 1-0

[Event "Late-Titled-Tuesday-Blitz-January-16-2024"]
[Site "Chess.com"]
[Date "2024.01.16"]
[Round "4"]
[White "szachmistrz2500"]
[Black "jinbojinbo"]
[Result "0-1"]
[WhiteElo "2434"]
[BlackElo "2650"]
[TimeControl "180+1"]
[EndTime "14:38:06 PST"]
[Termination "jinbojinbo won by resignation"]

1. d4 {[%clk 0:03:00.9]} 1... Nf6 {[%clk 0:02:59.9]} 2. c4 {[%clk 0:03:00.8]}
2... g6 {[%clk 0:02:59.9]} 3. Nc3 {[%clk 0:03:00.2]} 3... Bg7 {[%clk 0:03:00.4]}
4. e4 {[%clk 0:02:59.9]} 4... d6 {[%clk 0:03:00.3]} 5. Be2 {[%clk 0:03:00.1]}
5... O-O {[%clk 0:03:00.8]} 6. Bg5 {[%clk 0:03:00.2]} 6... c5 {[%clk 0:02:59.8]}
7. d5 {[%clk 0:02:59]} 7... e6 {[%clk 0:02:54.4]} 8. Nf3 {[%clk 0:02:57.4]} 8...
exd5 {[%clk 0:02:54.4]} 9. exd5 {[%clk 0:02:57.4]} 9... Qb6 {[%clk 0:02:44.8]}
10. Qd2 {[%clk 0:02:47.2]} 10... Bf5 {[%clk 0:02:44.1]} 11. O-O {[%clk 0:02:45]}
11... Ne4 {[%clk 0:02:44.1]} 12. Nxe4 {[%clk 0:02:39.7]} 12... Bxe4 {[%clk
0:02:45]} 13. Bh6 {[%clk 0:02:28.7]} 13... Bxh6 {[%clk 0:02:26.7]} 14. Qxh6
{[%clk 0:02:27.7]} 14... Bxf3 {[%clk 0:02:27]} 15. Bxf3 {[%clk 0:02:24]} 15...
Qxb2 {[%clk 0:02:19.1]} 16. Qf4 {[%clk 0:02:04.8]} 16... Qb6 {[%clk 0:02:08.8]}
17. Rab1 {[%clk 0:02:04.2]} 17... Qc7 {[%clk 0:02:09.1]} 18. h4 {[%clk
0:01:49.4]} 18... Nd7 {[%clk 0:02:01.6]} 19. h5 {[%clk 0:01:49.6]} 19... Ne5
{[%clk 0:02:00.5]} 20. h6 {[%clk 0:01:46.7]} 20... f6 {[%clk 0:01:57.5]} 21. Be2
{[%clk 0:01:45.3]} 21... Rae8 {[%clk 0:01:55.9]} 22. Qg3 {[%clk 0:01:44.5]}
22... Re7 {[%clk 0:01:54.2]} 23. f4 {[%clk 0:01:26]} 23... Nf7 {[%clk 0:01:54]}
24. Bg4 {[%clk 0:01:26.3]} 24... Nd8 {[%clk 0:01:30]} 25. Rfe1 {[%clk
0:01:10.4]} 25... f5 {[%clk 0:01:29.1]} 26. Bh5 {[%clk 0:01:00]} 26... Rfe8
{[%clk 0:01:09.2]} 27. Kh2 {[%clk 0:00:21.9]} 27... Rxe1 {[%clk 0:00:42.5]} 28.
Rxe1 {[%clk 0:00:22.8]} 28... Qf7 {[%clk 0:00:38.5]} 29. Bf3 {[%clk 0:00:21.4]}
29... Kf8 {[%clk 0:00:28.2]} 30. Qf2 {[%clk 0:00:19.6]} 30... Rxe1 {[%clk
0:00:26.6]} 31. Qxe1 {[%clk 0:00:19.6]} 31... Qf6 {[%clk 0:00:26.9]} 32. Qb1
{[%clk 0:00:16.8]} 32... Qh4+ {[%clk 0:00:24.8]} 33. Kg1 {[%clk 0:00:17.1]}
33... Qxf4 {[%clk 0:00:24.1]} 34. Qb5 {[%clk 0:00:16.7]} 34... Qxh6 {[%clk
0:00:21.2]} 35. Qd7 {[%clk 0:00:16.3]} 35... Qe3+ {[%clk 0:00:21.6]} 36. Kh2
{[%clk 0:00:16]} 36... Qe7 {[%clk 0:00:22.1]} 37. Qc8 {[%clk 0:00:15.3]} 37...
b6 {[%clk 0:00:17.6]} 38. a4 {[%clk 0:00:15.2]} 38... Kg7 {[%clk 0:00:17.9]} 39.
Qb8 {[%clk 0:00:08.4]} 39... Nf7 {[%clk 0:00:17.6]} 40. Qc8 {[%clk 0:00:05.4]}
40... h5 {[%clk 0:00:17.2]} 41. Kg3 {[%clk 0:00:05.1]} 41... Ne5 {[%clk
0:00:15.6]} 42. Qe6 {[%clk 0:00:04.8]} 42... Qxe6 {[%clk 0:00:15.4]} 43. dxe6
{[%clk 0:00:04.9]} 43... Nxf3 {[%clk 0:00:15.4]} 44. Kxf3 {[%clk 0:00:05.4]}
44... Kf6 {[%clk 0:00:15.8]} 0-1

[Event "Late-Titled-Tuesday-Blitz-January-16-2024"]
[Site "Chess.com"]
[Date "2024.01.16"]
[Round "4"]
[White "platy3"]
[Black "Bigfish1995"]
[Result "0-1"]
[WhiteElo "2891"]
[BlackElo "3077"]
[TimeControl "180+1"]
[EndTime "14:38:08 PST"]
[Termination "Bigfish1995 won on time"]

1. e4 {[%clk 0:03:00.9]} 1... c6 {[%clk 0:02:45.1]} 2. Nf3 {[%clk 0:02:52]} 2...
d5 {[%clk 0:02:44.1]} 3. d3 {[%clk 0:02:52.5]} 3... Qc7 {[%clk 0:02:43.3]} 4.
exd5 {[%clk 0:02:51.7]} 4... cxd5 {[%clk 0:02:43]} 5. c4 {[%clk 0:02:52.4]} 5...
Nf6 {[%clk 0:02:43]} 6. Nc3 {[%clk 0:02:52.6]} 6... e6 {[%clk 0:02:42.5]} 7. a3
{[%clk 0:02:51.2]} 7... a6 {[%clk 0:02:35]} 8. g3 {[%clk 0:02:50.7]} 8... dxc4
{[%clk 0:02:29.1]} 9. dxc4 {[%clk 0:02:50.6]} 9... Bd6 {[%clk 0:02:26.5]} 10.
Bg2 {[%clk 0:02:45.9]} 10... O-O {[%clk 0:02:21.5]} 11. O-O {[%clk 0:02:46.1]}
11... Bd7 {[%clk 0:02:17.7]} 12. b4 {[%clk 0:02:35.1]} 12... Qxc4 {[%clk
0:02:06.9]} 13. Qxd6 {[%clk 0:02:30.1]} 13... Qxc3 {[%clk 0:02:06.9]} 14. Bf4
{[%clk 0:02:20.5]} 14... Ne4 {[%clk 0:01:50.7]} 15. Qe5 {[%clk 0:02:13.6]} 15...
Bc6 {[%clk 0:01:46.7]} 16. Rfc1 {[%clk 0:02:11.1]} 16... Qxe5 {[%clk 0:01:39.3]}
17. Nxe5 {[%clk 0:02:11.7]} 17... Bd5 {[%clk 0:01:32.8]} 18. Rc7 {[%clk
0:02:07.9]} 18... Nf6 {[%clk 0:00:51.7]} 19. Rac1 {[%clk 0:01:51.6]} 19... Nc6
{[%clk 0:00:35.6]} 20. Bxd5 {[%clk 0:01:48.2]} 20... Nxd5 {[%clk 0:00:33.7]} 21.
Rxb7 {[%clk 0:01:48]} 21... Nd4 {[%clk 0:00:33.3]} 22. Rc4 {[%clk 0:01:14.8]}
22... Nb5 {[%clk 0:00:28.5]} 23. Nd7 {[%clk 0:00:54.3]} 23... Nxa3 {[%clk
0:00:28.4]} 24. Rc6 {[%clk 0:00:48.9]} 24... Rfc8 {[%clk 0:00:22.2]} 25. Rxc8+
{[%clk 0:00:41.6]} 25... Rxc8 {[%clk 0:00:23.1]} 26. Nc5 {[%clk 0:00:42.3]}
26... g5 {[%clk 0:00:12.1]} 27. Bxg5 {[%clk 0:00:39.6]} 27... a5 {[%clk
0:00:12.2]} 28. Ne4 {[%clk 0:00:29.1]} 28... axb4 {[%clk 0:00:11.8]} 29. Nd6
{[%clk 0:00:29.6]} 29... Rf8 {[%clk 0:00:09.6]} 30. Bh6 {[%clk 0:00:28.8]} 30...
Ra8 {[%clk 0:00:09.5]} 31. Nxf7 {[%clk 0:00:26.5]} 31... Nc4 {[%clk 0:00:05.3]}
32. Ng5 {[%clk 0:00:26.9]} 32... Nd6 {[%clk 0:00:05.2]} 33. Rg7+ {[%clk
0:00:14.5]} 33... Kh8 {[%clk 0:00:05.8]} 34. Rd7 {[%clk 0:00:14.8]} 34... Nf5
{[%clk 0:00:05.2]} 35. Nxe6 {[%clk 0:00:09.7]} 35... Nf6 {[%clk 0:00:02.8]} 36.
Rf7 {[%clk 0:00:07.3]} 36... Nxh6 {[%clk 0:00:03.1]} 37. Rxf6 {[%clk 0:00:07.4]}
37... b3 {[%clk 0:00:04]} 38. Nc7 {[%clk 0:00:01.4]} 38... b2 {[%clk 0:00:03.6]}
0-1

[Event "Late-Titled-Tuesday-Blitz-January-16-2024"]
[Site "Chess.com"]
[Date "2024.01.16"]
[Round "4"]
[White "iwanyu"]
[Black "VerdeNotte"]
[Result "0-1"]
[WhiteElo "2668"]
[BlackElo "2879"]
[TimeControl "180+1"]
[EndTime "14:38:11 PST"]
[Termination "VerdeNotte won by checkmate"]

1. d4 {[%clk 0:03:00.9]} 1... d5 {[%clk 0:02:59.3]} 2. c4 {[%clk 0:03:00.7]}
2... e6 {[%clk 0:02:59.8]} 3. Nf3 {[%clk 0:03:00.9]} 3... a6 {[%clk 0:03:00.3]}
4. Bg5 {[%clk 0:03:00.4]} 4... Be7 {[%clk 0:03:00.1]} 5. Bxe7 {[%clk 0:03:01]}
5... Nxe7 {[%clk 0:03:00.7]} 6. Nbd2 {[%clk 0:03:00.8]} 6... b6 {[%clk
0:02:58.3]} 7. g3 {[%clk 0:02:58.5]} 7... Bb7 {[%clk 0:02:57.4]} 8. Bg2 {[%clk
0:02:57.1]} 8... Nd7 {[%clk 0:02:52.2]} 9. Rc1 {[%clk 0:02:55.6]} 9... c5 {[%clk
0:02:50]} 10. cxd5 {[%clk 0:02:32.1]} 10... Nxd5 {[%clk 0:02:45.9]} 11. Nc4
{[%clk 0:02:19.2]} 11... O-O {[%clk 0:02:33]} 12. e4 {[%clk 0:02:14.4]} 12...
N5f6 {[%clk 0:02:26.3]} 13. e5 {[%clk 0:02:13]} 13... Ne8 {[%clk 0:02:07.1]} 14.
O-O {[%clk 0:02:02.7]} 14... b5 {[%clk 0:02:05.1]} 15. Ne3 {[%clk 0:01:46.4]}
15... c4 {[%clk 0:01:45.5]} 16. b3 {[%clk 0:01:25.3]} 16... cxb3 {[%clk
0:01:45.1]} 17. d5 {[%clk 0:01:17.9]} 17... bxa2 {[%clk 0:01:33.4]} 18. Qb3
{[%clk 0:01:05.5]} 18... exd5 {[%clk 0:01:22]} 19. Qxa2 {[%clk 0:01:01]} 19...
Nc7 {[%clk 0:01:17.3]} 20. Nf5 {[%clk 0:00:59.1]} 20... Nb6 {[%clk 0:01:01.4]}
21. Nd6 {[%clk 0:00:57.6]} 21... Rb8 {[%clk 0:01:00]} 22. Nd4 {[%clk 0:00:42.2]}
22... Nc4 {[%clk 0:00:57.7]} 23. N4f5 {[%clk 0:00:32.9]} 23... Nxe5 {[%clk
0:00:45.4]} 24. Qa1 {[%clk 0:00:29.6]} 24... f6 {[%clk 0:00:40.9]} 25. Rfd1
{[%clk 0:00:25.1]} 25... Kh8 {[%clk 0:00:39.5]} 26. Qa5 {[%clk 0:00:20.5]} 26...
Ne6 {[%clk 0:00:33.5]} 27. Nxb7 {[%clk 0:00:19.8]} 27... Rxb7 {[%clk 0:00:30.6]}
28. Qxa6 {[%clk 0:00:19.1]} 28... Rb6 {[%clk 0:00:26.7]} 29. Qa7 {[%clk
0:00:18.2]} 29... Rf7 {[%clk 0:00:20]} 30. Qa2 {[%clk 0:00:17.1]} 30... g6
{[%clk 0:00:15.6]} 31. Rxd5 {[%clk 0:00:16.5]} 31... Rd7 {[%clk 0:00:15.6]} 32.
Nh6 {[%clk 0:00:13.9]} 32... Kg7 {[%clk 0:00:14.1]} 33. Rxd7+ {[%clk 0:00:09.6]}
33... Qxd7 {[%clk 0:00:14.2]} 34. Qe2 {[%clk 0:00:08.2]} 34... Rd6 {[%clk
0:00:11.5]} 35. Ng4 {[%clk 0:00:06.9]} 35... Nd4 {[%clk 0:00:09.6]} 36. Qe4
{[%clk 0:00:03.2]} 36... Qxg4 {[%clk 0:00:06.4]} 37. Rc7+ {[%clk 0:00:02.8]}
37... Kh6 {[%clk 0:00:06.1]} 38. Qe3+ {[%clk 0:00:02.2]} 38... g5 {[%clk
0:00:06.3]} 39. h4 {[%clk 0:00:01.8]} 39... Ndf3+ {[%clk 0:00:06]} 40. Kf1
{[%clk 0:00:01.5]} 40... Rd1+ {[%clk 0:00:05.7]} 41. Ke2 {[%clk 0:00:01.7]}
41... Nd4# {[%clk 0:00:06]} 0-1